bitfinex/quotes_SOLUSD_20230402
["timestamp","ask_amount","ask_price","bid_price","bid_amount"]
[1680445783130,128.3946,20.811,20.802,20.0]
[1680445784436,128.3946,20.811,20.801,10.0]
[1680445784736,128.3946,20.811,20.802,20.0]
[1680445785635,128.3946,20.811,20.801,10.0]
[1680445785826,128.3946,20.811,20.802,20.0]
[1680445786425,128.3946,20.811,20.8,20.0]
[1680445786727,128.3946,20.811,20.801,27.0]
[1680445786927,128.3946,20.811,20.802,20.0]
[1680445793133,128.3946,20.811,20.8,10.0]
[1680445793436,128.3946,20.811,20.801,20.0]
[1680445794146,128.3946,20.811,20.799,20.0]
[1680445794647,127.8946,20.811,20.799,20.0]
[1680445802035,127.8946,20.811,20.798,7.2121209]
[1680445802240,17.0,20.81,20.791,48.67863634]
[1680445802444,17.0,20.81,20.784,7.2121209]
[1680445802641,10.0,20.809,20.786,104.26571905]
[1680445802846,17.0,20.808,20.786,104.26571905]
[1680445803150,10.0,20.807,20.789,27.2121209]
[1680445803334,10.0,20.807,20.791,10.0]
[1680445803535,10.0,20.807,20.792,37.0]
[1680445804034,10.0,20.807,20.794,10.0]
[1680445804442,10.0,20.807,20.793,7.2121209]
[1680445804649,10.0,20.807,20.794,17.0]
[1680445805045,10.0,20.807,20.793,7.2121209]
[1680445805238,17.0,20.806,20.789,20.0]
[1680445805436,17.0,20.806,20.79,50.0]
[1680445805641,10.0,20.805,20.79,50.0]
[1680445806357,10.0,20.805,20.79,20.0]
[1680445808436,10.0,20.805,20.79,27.2121209]
[1680445810151,10.0,20.803,20.79,27.2121209]
[1680445811942,10.0,20.801,20.79,27.2121209]
[1680445812143,10.0,20.801,20.79,20.0]
[1680445812342,10.0,20.799,20.79,20.0]
[1680445812738,10.0,20.797,20.79,20.0]
[1680445814959,17.0,20.796,20.79,20.0]
[1680445816757,17.0,20.796,20.789,20.0]
[1680445816758,10.0,20.795,20.789,20.0]
[1680445817150,10.0,20.793,20.789,20.0]
[1680445817346,10.0,20.791,20.789,20.0]
[1680445817850,17.0,20.79,20.789,20.0]
[1680445823178,10.0,20.795,20.789,20.0]
[1680445823379,17.0,20.794,20.789,20.0]
[1680445823678,10.0,20.795,20.789,20.0]
[1680445823881,145.20142947,20.804,20.789,20.0]
[1680445824880,10.0,20.795,20.789,20.0]
[1680445825083,17.0,20.794,20.789,20.0]
[1680445828887,10.0,20.793,20.789,20.0]
[1680445829083,10.0,20.791,20.789,20.0]
[1680445829293,17.0,20.79,20.789,20.0]
[1680445834906,17.0,20.79,20.778,10.0]
[1680445835091,119.3113,20.79,20.78,10.0]
[1680445835288,10.0,20.788,20.776,10.0]
[1680445835490,17.0,20.787,20.776,10.0]
[1680445837710,17.0,20.787,20.77,129.4984]
[1680445838009,17.0,20.787,20.772,10.0]
[1680445838397,17.0,20.787,20.774,10.0]
[1680445839800,10.0,20.786,20.773,20.0]
[1680445840002,17.0,20.785,20.773,20.0]
[1680445846113,17.0,20.785,20.772,10.0]
[1680445846315,17.0,20.785,20.773,20.0]
[1680445847410,17.0,20.785,20.773,10.0]
[1680445847612,17.0,20.785,20.772,20.0]
[1680445847817,10.0,20.784,20.772,20.0]
[1680445848017,10.0,20.782,20.772,20.0]
[1680445848517,10.0,20.78,20.772,20.0]
[1680445848820,17.0,20.779,20.772,20.0]
[1680445849413,17.0,20.781,20.771,20.0]
[1680445849614,17.0,20.781,20.772,10.0]
[1680445849808,17.0,20.781,20.773,20.0]
[1680445850603,118.1995,20.787,20.773,20.0]
[1680445850802,10.0,20.795,20.774,10.0]
[1680445851004,128.1995,20.795,20.774,10.0]
[1680445851318,10.0,20.794,20.774,10.0]
[1680445851517,10.0,20.789,20.774,10.0]
[1680445852408,10.0,20.787,20.774,10.0]
[1680445852605,10.0,20.785,20.774,10.0]
[1680445852804,10.0,20.787,20.774,10.0]
[1680445853006,10.0,20.785,20.774,10.0]
[1680445853213,10.0,20.787,20.774,10.0]
[1680445853503,16.829,20.798,20.774,10.0]
[1680445854311,16.829,20.798,20.774,17.2121209]
[1680445858822,10.0,20.794,20.774,17.2121209]
[1680445859209,10.0,20.788,20.774,10.0]
[1680445859919,27.0,20.789,20.774,10.0]
[1680445860421,17.0,20.789,20.774,10.0]
[1680445870734,10.0,20.794,20.774,10.0]
[1680445870948,10.0,20.794,20.776,10.0]
[1680445871836,10.0,20.788,20.776,10.0]
[1680445873827,10.0,20.786,20.774,10.0]
[1680445874944,17.0,20.787,20.774,10.0]
[1680445875929,17.0,20.787,20.773,58.490793]
[1680445877824,10.0,20.786,20.773,58.490793]
[1680445878024,10.0,20.784,20.773,58.490793]
[1680445878447,10.0,20.782,20.773,58.490793]
[1680445878637,10.0,20.784,20.773,58.490793]
[1680445878942,10.0,20.786,20.773,58.490793]
[1680445879133,10.0,20.784,20.773,58.490793]
[1680445879528,10.0,20.786,20.773,58.490793]
[1680445879726,17.0,20.785,20.773,58.490793]
[1680445879938,58.53605479,20.799,20.774,10.0]
[1680445882937,10.0,20.788,20.774,10.0]
[1680445883138,10.0,20.786,20.774,10.0]
[1680445883945,10.0,20.784,20.774,10.0]
[1680445884144,10.0,20.786,20.774,10.0]
[1680445884336,10.0,20.784,20.774,10.0]
[1680445885139,10.0,20.784,20.773,20.0]
[1680445885348,10.0,20.784,20.773,10.0]
[1680445885545,17.0,20.785,20.773,10.0]
[1680445888841,10.0,20.786,20.773,10.0]
[1680445889042,10.0,20.784,20.773,10.0]
[1680445889243,10.0,20.786,20.773,10.0]
[1680445889442,17.0,20.785,20.773,10.0]
[1680445890653,10.0,20.786,20.773,10.0]
[1680445890951,121.6127,20.788,20.773,10.0]
[1680445891151,10.0,20.786,20.773,10.0]
[1680445891352,17.0,20.787,20.773,10.0]
[1680445893649,111.6127,20.788,20.773,10.0]
[1680445893839,111.6127,20.788,20.775,10.0]
[1680445894035,395.3,20.821,20.777,10.0]
[1680445894240,16.829,20.798,20.778,20.0]
[1680445894443,10.0,20.797,20.779,10.0]
[1680445894640,10.0,20.797,20.78,37.0]
[1680445894851,10.0,20.797,20.781,10.0]
[1680445895052,10.0,20.797,20.783,10.0]
[1680445896240,10.0,20.795,20.783,10.0]
[1680445897736,10.0,20.795,20.781,10.0]
[1680445897940,10.0,20.793,20.783,10.0]
[1680445898842,17.0,20.792,20.782,20.0]
[1680445900241,10.0,20.793,20.782,20.0]
[1680445900440,17.0,20.792,20.782,20.0]
[1680445901049,17.0,20.792,20.78,20.0]
[1680445901249,17.0,20.792,20.781,10.0]
[1680445901453,17.0,20.792,20.783,10.0]
[1680445901746,17.0,20.792,20.782,20.0]
[1680445901947,17.0,20.792,20.78,20.0]
[1680445902141,17.0,20.792,20.781,10.0]
[1680445902342,17.0,20.792,20.782,20.0]
[1680445903350,10.0,20.797,20.783,10.0]
[1680445903553,16.829,20.798,20.783,10.0]
[1680445903943,16.829,20.798,20.785,10.0]
[1680445907853,16.829,20.798,20.783,10.0]
[1680445909760,10.0,20.797,20.783,10.0]
[1680445909958,27.0,20.797,20.782,20.0]
[1680445914058,27.0,20.797,20.783,20.0]
[1680445914059,10.0,20.795,20.783,20.0]
[1680445914263,10.0,20.793,20.783,20.0]
[1680445914741,10.0,20.791,20.782,20.0]
[1680445914945,10.0,20.791,20.782,10.0]
[1680445915147,17.0,20.79,20.783,20.0]
[1680445915771,10.0,20.791,20.783,20.0]
[1680445916071,10.0,20.793,20.782,10.0]
[1680445916257,10.0,20.793,20.784,10.0]
[1680445916462,10.0,20.793,20.782,10.0]
[1680445916763,10.0,20.793,20.784,10.0]
[1680445916967,10.0,20.793,20.782,10.0]
[1680445917159,10.0,20.793,20.784,10.0]
[1680445917351,10.0,20.793,20.782,10.0]
[1680445917547,17.2121209,20.795,20.784,10.0]
[1680445917762,10.0,20.793,20.784,10.0]
[1680445918266,10.0,20.793,20.782,10.0]
[1680445918566,10.0,20.793,20.784,10.0]
[1680445919067,10.0,20.793,20.783,20.0]
[1680445919265,17.0,20.794,20.783,20.0]
[1680445921172,17.0,20.794,20.782,10.0]
[1680445921350,17.0,20.794,20.784,10.0]
[1680445922379,17.0,20.794,20.781,20.0]
[1680445922964,7.2121209,20.795,20.781,20.0]
[1680445923489,10.0,20.793,20.781,20.0]
[1680445923657,10.0,20.791,20.781,20.0]
[1680445924265,10.0,20.793,20.781,20.0]
[1680445924664,125.8604209,20.8,20.781,20.0]
[1680445924863,125.8604209,20.8,20.777,10.0]
[1680445925065,125.8604209,20.8,20.779,10.0]
[1680445925672,125.8604209,20.8,20.781,10.0]
[1680445925867,125.8604209,20.8,20.783,10.0]
[1680445926268,10.0,20.795,20.781,10.0]
[1680445926467,10.0,20.793,20.783,10.0]
[1680445927277,10.0,20.793,20.782,20.0]
[1680445927877,10.0,20.795,20.782,20.0]
[1680445928064,10.0,20.793,20.782,20.0]
[1680445929673,10.0,20.795,20.782,20.0]
[1680445930065,17.0,20.796,20.783,10.0]
[1680445931174,118.6483,20.8,20.783,10.0]
[1680445932560,10.0,20.796,20.783,10.0]
[1680445935180,109.2642,20.812,20.783,10.0]
[1680445935378,33.645,20.806,20.785,10.0]
[1680445935564,10.0,20.805,20.787,10.0]
[1680445935763,10.0,20.805,20.788,17.0]
[1680445935979,10.0,20.805,20.789,20.0]
[1680445936181,10.0,20.805,20.791,10.0]
[1680445936383,10.0,20.805,20.792,20.0]
[1680445938989,10.0,20.805,20.79,10.0]
[1680445939290,10.0,20.805,20.791,20.0]
[1680445942986,10.0,20.805,20.789,10.0]
[1680445943186,10.0,20.805,20.791,10.0]
[1680445943389,10.0,20.805,20.792,20.0]
[1680445944491,10.0,20.805,20.79,20.0]
[1680445949675,33.645,20.806,20.79,20.0]
[1680445949880,33.645,20.806,20.792,10.0]
[1680445950084,33.645,20.806,20.794,10.0]
[1680445951694,33.645,20.806,20.792,10.0]
[1680445951895,33.645,20.806,20.794,10.0]
[1680445952597,33.645,20.806,20.792,10.0]
[1680445952791,33.645,20.806,20.794,10.0]
[1680445953789,33.645,20.806,20.796,10.0]
[1680445954199,33.645,20.806,20.797,17.0]
[1680445954395,33.645,20.806,20.798,10.0]
[1680445954594,33.645,20.806,20.799,17.0]
[1680445954789,33.645,20.806,20.8,30.0]
[1680445957085,33.645,20.806,20.8,20.0]
[1680445957586,33.645,20.806,20.8,10.0]
[1680445957798,33.645,20.806,20.802,10.0]
[1680445958000,33.645,20.806,20.803,20.0]
[1680445958686,33.645,20.806,20.798,10.0]
[1680445958687,33.645,20.806,20.801,20.0]
[1680445958886,33.645,20.806,20.8,10.0]
[1680445959086,33.645,20.806,20.801,20.0]
[1680445961097,33.645,20.806,20.8,10.0]
[1680445961290,33.645,20.806,20.801,20.0]
[1680445963502,33.645,20.806,20.8,10.0]
[1680445963692,33.645,20.806,20.801,20.0]
[1680445965697,33.645,20.806,20.801,20.0]
[1680445967418,33.645,20.806,20.802,27.0]
[1680445967601,33.645,20.806,20.803,20.0]
[1680445967910,33.645,20.806,20.804,27.0]
[1680445968309,33.645,20.806,20.803,20.0]
[1680445969011,33.645,20.806,20.802,10.0]
[1680445969214,33.645,20.806,20.803,20.0]
[1680445969415,33.645,20.806,20.804,10.0]
[1680445970112,33.645,20.806,20.803,20.0]
[1680445970306,10.0,20.821,20.805,10.0]
[1680445970505,116.6421,20.823,20.806,17.0]
[1680445970810,116.6421,20.823,20.808,10.0]
[1680445971015,116.6421,20.823,20.809,37.0]
[1680445971313,116.6421,20.823,20.81,10.0]
[1680445971499,116.6421,20.823,20.811,20.0]
[1680445971694,116.6421,20.823,20.812,10.0]
[1680445974506,116.6421,20.823,20.814,10.0]
[1680445975616,116.6421,20.823,20.812,10.0]
[1680445975815,116.6421,20.823,20.811,20.0]
[1680445977806,116.6421,20.823,20.813,10.0]
[1680445979114,116.6421,20.823,20.811,20.0]
[1680445983423,10.0,20.821,20.809,20.0]
[1680445983628,10.0,20.821,20.81,10.0]
[1680445984014,10.0,20.821,20.811,20.0]
[1680445984528,17.0,20.822,20.81,10.0]
[1680445984729,116.6421,20.823,20.812,10.0]
[1680445985622,116.6421,20.823,20.81,10.0]
[1680445985823,116.6421,20.823,20.812,10.0]
[1680445986226,116.6421,20.823,20.809,20.0]
[1680445986528,10.0,20.822,20.809,20.0]
[1680445986919,10.0,20.82,20.806,20.0]
[1680445987120,10.0,20.82,20.807,10.0]
[1680445987320,10.0,20.82,20.809,10.0]
[1680445987525,10.0,20.82,20.81,20.0]
[1680445987924,17.0,20.821,20.81,20.0]
[1680445988120,10.0,20.822,20.81,20.0]
[1680445988325,116.6421,20.823,20.81,20.0]
[1680445996841,116.6421,20.823,20.812,10.0]
[1680445997235,116.6421,20.823,20.814,10.0]
[1680445998578,116.6421,20.823,20.813,17.0]
[1680445999640,116.6421,20.823,20.814,10.0]
[1680445999842,116.6421,20.823,20.815,17.0]
[1680446000043,116.6421,20.823,20.816,30.0]
[1680446000233,16.804,20.828,20.818,10.0]
[1680446000434,16.804,20.828,20.82,10.0]
[1680446000838,16.804,20.828,20.821,20.0]
[1680446001350,16.804,20.828,20.823,10.0]
[1680446001650,16.804,20.828,20.821,20.0]
[1680446001861,16.804,20.828,20.823,10.0]
[1680446002038,16.804,20.828,20.822,17.0]
[1680446008237,16.804,20.828,20.823,10.0]
[1680446008445,16.804,20.828,20.824,17.0]
[1680446008653,16.804,20.828,20.825,10.0]
[1680446008855,16.804,20.828,20.827,10.0]
[1680446009057,16.804,20.828,20.827,27.0]
[1680446009860,16.804,20.828,20.827,17.0]
[1680446010056,16.804,20.828,20.827,10.0]
[1680446010269,16.804,20.828,20.827,27.0]
[1680446010463,16.804,20.828,20.827,47.0]
[1680446011338,10.0,20.844,20.828,10.0]
[1680446011641,10.0,20.844,20.83,10.0]
[1680446011840,10.0,20.844,20.831,20.0]
[1680446012356,10.0,20.844,20.833,10.0]
[1680446012548,10.0,20.844,20.831,20.0]
[1680446012753,10.0,20.844,20.83,10.0]
[1680446013048,10.0,20.844,20.831,20.0]
[1680446013958,10.0,20.844,20.83,10.0]
[1680446014251,10.0,20.844,20.832,10.0]
[1680446014450,10.0,20.844,20.83,10.0]
[1680446014640,10.0,20.844,20.832,10.0]
[1680446014951,10.0,20.844,20.83,10.0]
[1680446015151,10.0,20.844,20.832,10.0]
[1680446015347,10.0,20.844,20.83,10.0]
[1680446015556,10.0,20.844,20.832,10.0]
[1680446015753,10.0,20.844,20.83,10.0]
[1680446016055,10.0,20.844,20.831,20.0]
[1680446016551,10.0,20.844,20.83,10.0]
[1680446016751,10.0,20.844,20.831,20.0]
[1680446016947,111.639,20.847,20.832,10.0]
[1680446022640,111.639,20.847,20.831,20.0]
[1680446023146,111.639,20.847,20.83,10.0]
[1680446023347,111.639,20.847,20.832,10.0]
[1680446023758,10.0,20.844,20.83,10.0]
[1680446023954,10.0,20.844,20.831,20.0]
[1680446024352,111.639,20.847,20.831,20.0]
[1680446025358,10.0,20.844,20.831,20.0]
[1680446025555,10.0,20.844,20.822,10.0]
[1680446025761,27.0,20.838,20.822,10.0]
[1680446026058,145.6354,20.838,20.823,30.0]
[1680446026256,10.0,20.837,20.823,30.0]
[1680446026461,17.0,20.836,20.823,30.0]
[1680446026647,10.0,20.835,20.823,30.0]
[1680446026847,10.0,20.835,20.82,10.0]
[1680446027043,116.5768,20.834,20.82,10.0]
[1680446027243,10.0,20.833,20.82,10.0]
[1680446027561,10.0,20.833,20.822,10.0]
[1680446028160,10.0,20.833,20.828,20.0]
[1680446028351,116.5768,20.834,20.828,20.0]
[1680446045061,116.5768,20.834,20.814,10.0]
[1680446045062,30.0,20.833,20.814,10.0]
[1680446045464,30.0,20.833,20.816,10.0]
[1680446046465,30.0,20.833,20.818,10.0]
[1680446047585,20.0,20.833,20.818,10.0]
[1680446048376,20.0,20.833,20.82,10.0]
[1680446048585,116.5768,20.834,20.82,10.0]
[1680446048767,116.5768,20.834,20.822,10.0]
[1680446049872,116.5768,20.834,20.824,10.0]
[1680446050482,116.5768,20.834,20.822,10.0]
[1680446052376,116.5768,20.834,20.821,17.0]
[1680446052674,116.5768,20.834,20.823,10.0]
[1680446054888,116.5768,20.834,20.821,17.0]
[1680446055082,116.5768,20.834,20.823,10.0]
[1680446055679,116.5768,20.834,20.821,17.0]
[1680446055878,116.5768,20.834,20.823,10.0]
[1680446056376,116.5768,20.834,20.822,20.0]
[1680446056577,10.0,20.833,20.821,20.0]
[1680446056782,17.0,20.832,20.816,10.0]
[1680446057090,10.0,20.831,20.816,10.0]
[1680446057994,10.0,20.829,20.815,10.0]
[1680446058380,10.0,20.827,20.815,10.0]
[1680446059794,10.0,20.829,20.815,10.0]
[1680446059988,10.0,20.827,20.815,10.0]
[1680446060778,10.0,20.827,20.814,10.0]
[1680446061375,10.0,20.827,20.809,10.0]
[1680446061580,10.0,20.827,20.814,30.0]
[1680446061581,10.0,20.825,20.814,30.0]
[1680446062692,10.0,20.827,20.814,30.0]
[1680446062899,10.0,20.825,20.814,30.0]
[1680446063780,10.0,20.823,20.814,30.0]
[1680446064299,17.0,20.822,20.814,30.0]
[1680446064600,10.0,20.821,20.814,30.0]
[1680446066284,17.0,20.822,20.814,30.0]
[1680446066491,10.0,20.825,20.814,30.0]
[1680446066684,10.0,20.823,20.814,30.0]
[1680446070703,17.0,20.824,20.814,30.0]
[1680446072799,17.0,20.824,20.809,10.0]
[1680446073007,118.8925,20.823,20.81,20.0]
[1680446073308,27.0,20.822,20.81,20.0]
[1680446073623,27.0,20.822,20.807,20.0]
[1680446073800,27.0,20.822,20.808,10.0]
[1680446074095,27.0,20.822,20.81,10.0]
[1680446074288,27.0,20.822,20.811,20.0]
[1680446074487,27.0,20.822,20.802,117.423]
[1680446074688,137.0274,20.822,20.804,30.0]
[1680446074896,137.0274,20.822,20.802,117.423]
[1680446075484,137.0274,20.822,20.794,62.24439158]
[1680446075690,137.0274,20.822,20.798,10.0]
[1680446076086,137.0274,20.822,20.8,10.0]
[1680446076288,137.0274,20.822,20.801,20.0]
[1680446077388,137.0274,20.822,20.8,10.0]
[1680446077607,137.0274,20.822,20.801,20.0]
[1680446078600,4.59958794,20.821,20.801,20.0]
[1680446078900,10.0,20.819,20.791,10.0]
[1680446079205,10.0,20.819,20.792,20.0]
[1680446079399,83.38807148,20.818,20.793,10.0]
[1680446079707,17.2121209,20.817,20.793,10.0]
[1680446079894,37.0,20.816,20.793,10.0]
[1680446080096,10.0,20.815,20.793,10.0]
[1680446080296,37.0,20.814,20.793,10.0]
[1680446080502,10.0,20.813,20.793,10.0]
[1680446080696,10.0,20.811,20.793,10.0]
[1680446080893,17.0,20.81,20.793,10.0]
[1680446081208,10.0,20.809,20.793,10.0]
[1680446081408,10.0,20.807,20.793,10.0]
[1680446082090,10.0,20.807,20.792,20.0]
[1680446084608,17.0,20.808,20.793,10.0]
[1680446085603,10.0,20.809,20.793,10.0]
[1680446085903,10.0,20.807,20.793,17.2121209]
[1680446087002,10.0,20.809,20.793,17.2121209]
[1680446090819,10.0,20.809,20.795,10.0]
[1680446091814,115.5418,20.812,20.796,17.0]
[1680446092026,115.5418,20.812,20.797,10.0]
[1680446093420,115.5418,20.812,20.799,10.0]
[1680446094927,115.5418,20.812,20.798,17.0]
[1680446095110,115.5418,20.812,20.797,17.2121209]
[1680446098025,115.5418,20.812,20.797,10.0]
[1680446099806,10.0,20.811,20.795,10.0]
[1680446100009,10.0,20.811,20.797,10.0]
[1680446102222,115.5418,20.812,20.797,10.0]
[1680446102420,115.5418,20.812,20.799,10.0]
[1680446102810,115.5418,20.812,20.801,10.0]
[1680446103006,115.5418,20.812,20.803,10.0]
[1680446104718,115.8353,20.817,20.803,10.0]
[1680446107530,115.8353,20.817,20.805,10.0]
[1680446108328,115.8353,20.817,20.803,10.0]
[1680446108525,115.8353,20.817,20.805,10.0]
[1680446108919,115.8353,20.817,20.803,10.0]
[1680446109228,115.8353,20.817,20.805,10.0]
[1680446109431,10.0,20.816,20.803,10.0]
[1680446109823,10.0,20.816,20.801,10.0]
[1680446110024,10.0,20.814,20.802,20.0]
[1680446110432,10.0,20.814,20.8,20.0]
[1680446110634,10.0,20.814,20.801,10.0]
[1680446110825,10.0,20.814,20.802,20.0]
[1680446112024,10.0,20.814,20.801,10.0]
[1680446112217,10.0,20.816,20.803,10.0]
[1680446113823,10.0,20.816,20.802,17.0]
[1680446115123,10.0,20.816,20.8,129.8757]
[1680446115425,10.0,20.814,20.8,129.8757]
[1680446118645,10.0,20.814,20.8,20.0]
[1680446118843,10.0,20.812,20.797,10.0]
[1680446119039,17.0,20.811,20.798,20.0]
[1680446119243,10.0,20.81,20.798,20.0]
[1680446121733,10.0,20.812,20.798,20.0]
[1680446122847,10.0,20.814,20.799,10.0]
[1680446123048,10.0,20.814,20.8,20.0]
[1680446128640,128.8925,20.823,20.8,20.0]
[1680446128839,128.8925,20.823,20.801,226.0149]
[1680446129041,118.8925,20.823,20.802,20.0]
[1680446129256,16.807,20.824,20.803,27.0]
[1680446129454,16.807,20.824,20.804,50.0]
[1680446129658,16.807,20.824,20.805,17.0]
[1680446130044,16.807,20.824,20.806,30.0]
[1680446130245,16.807,20.824,20.807,27.0]
[1680446130459,16.807,20.824,20.808,30.0]
[1680446130640,16.807,20.824,20.809,27.0]
[1680446130842,16.807,20.824,20.811,10.0]
[1680446131042,16.807,20.824,20.812,37.0]
[1680446131859,16.807,20.824,20.812,20.0]
[1680446132454,16.807,20.824,20.811,10.0]
[1680446132760,16.807,20.824,20.812,20.0]
[1680446133945,16.807,20.824,20.811,10.0]
[1680446134146,16.807,20.824,20.812,20.0]
[1680446135058,16.807,20.824,20.811,10.0]
[1680446135239,16.807,20.824,20.812,20.0]
[1680446135955,10.0,20.822,20.812,20.0]
[1680446136458,10.0,20.822,20.811,10.0]
[1680446136664,10.0,20.822,20.812,20.0]
[1680446137360,10.0,20.822,20.811,10.0]
[1680446137550,10.0,20.822,20.812,20.0]
[1680446137946,10.0,20.82,20.809,20.0]
[1680446138248,10.0,20.82,20.808,10.0]
[1680446138447,10.0,20.82,20.809,20.0]
[1680446139055,10.0,20.82,20.808,10.0]
[1680446139245,10.0,20.82,20.809,20.0]
[1680446140247,10.0,20.818,20.809,20.0]
[1680446140447,10.0,20.818,20.807,20.0]
[1680446143055,10.0,20.818,20.807,10.0]
[1680446143254,10.0,20.818,20.808,20.0]
[1680446143962,10.0,20.818,20.807,10.0]
[1680446144264,10.0,20.818,20.808,20.0]
[1680446145462,10.0,20.818,20.807,10.0]
[1680446145651,10.0,20.818,20.808,20.0]
[1680446146168,10.0,20.82,20.808,20.0]
[1680446146372,10.0,20.818,20.808,20.0]
[1680446146970,10.0,20.818,20.807,10.0]
[1680446147152,10.0,20.818,20.808,20.0]
[1680446147970,10.0,20.818,20.807,10.0]
[1680446148160,10.0,20.818,20.808,20.0]
[1680446149467,10.0,20.818,20.807,10.0]
[1680446149670,10.0,20.818,20.808,20.0]
[1680446150570,10.0,20.818,20.807,10.0]
[1680446150772,10.0,20.818,20.808,20.0]
[1680446151967,10.0,20.818,20.807,10.0]
[1680446152272,17.0,20.819,20.809,10.0]
[1680446152567,17.0,20.819,20.81,20.0]
[1680446152973,17.0,20.819,20.808,20.0]
[1680446155072,17.0,20.819,20.807,10.0]
[1680446155282,17.0,20.819,20.808,20.0]
[1680446155459,10.0,20.818,20.803,10.0]
[1680446155659,17.0,20.817,20.803,10.0]
[1680446155870,10.0,20.816,20.803,10.0]
[1680446157262,10.0,20.816,20.786,589.0]
[1680446157864,10.0,20.816,20.793,52.31114613]
[1680446161183,17.0,20.817,20.803,10.0]
[1680446162986,10.0,20.816,20.802,116.0456]
[1680446163377,10.0,20.816,20.805,19.21503]
[1680446167095,17.0,20.817,20.805,19.21503]
[1680446170881,10.0,20.822,20.805,19.21503]
[1680446171082,10.0,20.822,20.806,10.0]
[1680446171880,115.8803,20.823,20.806,10.0]
[1680446172191,115.8803,20.823,20.807,37.0]
[1680446172395,115.8803,20.823,20.808,10.0]
[1680446172599,115.8803,20.823,20.809,37.0]
[1680446172897,115.8803,20.823,20.81,10.0]
[1680446173094,115.8803,20.823,20.812,10.0]
[1680446173477,10.0,20.83,20.812,10.0]
[1680446175685,10.0,20.83,20.81,10.0]
[1680446175888,10.0,20.83,20.812,10.0]